Cogmind - Beta 13 @@@ ROGUE MODE // 2024.07.05 @ 20:23:40 Player: lexi^-^ Result: Destroyed by S-10 Pest with Light Assault Rifle Performance ------------- Evolutions (0) 0 Regions Visited (1) 200 Robots Destroyed (19) 95 Value Destroyed (160) 160 Prototype IDs (0) 0 Alien Tech Used (0) 0 Bonus (0) 0 TOTAL SCORE: 455 Bonus ------- None Cogmind --------- Core Integrity 0/250 Matter 145/300 Energy 91/100 System Corruption 26% Temperature Hot (239) Movement Rolling (80) Location -10/Materials Parts ------- > --- POWER (1) -------- (None) > --- PROPULSION (2) --- Wheel Wheel > --- UTILITY (2) ------ Structural Scanner Terrain Scan Processor > --- WEAPON (2) ------- Assault Rifle > --- INVENTORY (5) ---- Sensor Array Terrain Scanner Seismic Detector Welding Torch Peak State ------------ > --- POWER ------------ Light Ion Engine > --- PROPULSION ------- Wheel Wheel > --- UTILITY ---------- Improved Terrain Scanner Terrain Scan Processor > --- WEAPON ----------- Light Assault Rifle Mining Claw > --- INVENTORY -------- Structural Scanner Seismic Detector Assault Rifle Welding Torch Mining Claw [Rating: 10] Favorites ----------- Power Light Ion Engine Engine Light Ion Engine Propulsion Wheel Wheel Wheel Utility Improved Terrain Scanner Device Improved Terrain Scanner Processor Terrain Scan Processor Weapon Light Assault Rifle Ballistic Gun Light Assault Rifle Special Weapon Mining Laser Slashing Weapon Mining Claw Build | -11 -10 ------- Run | Yrd Mat Slots Evolved . | . . Power . | . . Propulsion . | . . Utility . | . . Weapon . | . . Parts Attached 25 | 6 19 Power 1 | 1 . Engine 1 | 1 . Core . | . . Reactor . | . . Propulsion 8 | 2 6 Treads . | . . Leg . | . . Wheel 8 | 2 6 Hover . | . . Flight . | . . Utility 6 | 1 5 Device 5 | 1 4 Storage . | . . Processor 1 | . 1 Hackware . | . . Protection . | . . Artifact . | . . Weapon 10 | 2 8 Energy Gun . | . . Energy Cannon . | . . Ballistic Gun 6 | 2 4 Ballistic Cannon . | . . Launcher . | . . Special Weapon 2 | . 2 Impact Weapon . | . . Slashing Weapon 2 | . 2 Piercing Weapon . | . . Special Melee Weapon . | . . Unidentified Prototypes . | . . Parts Lost 11 | . 11 Power 1 | . 1 Propulsion 4 | . 4 Utility 2 | . 2 Weapon 4 | . 4 Highest Loss Streak 4 | . 4 To Critical Strikes . | . . Average Slot Usage (%) 92 | . 92 Engine 13 | . 13 Wheel 25 | . 25 Device 18 | . 18 Processor 8 | . 8 Ballistic Gun 14 | . 14 Special Weapon 1 | . 1 Slashing Weapon 10 | . 10 Naked Turns . | . . Heaviest Build 8 | 7 8 Greatest Support 26 | 26 26 Greatest Overweight (x) 2 | . 2 Average Overweight (x) . | . . Largest Inventory Capacity 5 | 5 5 Average Capacity 5 | 5 5 Most Carried 5 | 4 5 Average Carried 3 | 1 4 Final Capacity 5 | 5 5 Final Carried 4 | 3 4 Class Distribution -------------------- 68% | Mutant 31% | Scavenger-Mutant Dominant Class ---------------- Mutant | -10/Materials Resources | -11 -10 ----------- Run | Yrd Mat Matter Collected 506 | 332 174 Remotely . | . . Salvage Created 390 | 160 230 Parts 51 | 18 33 Haulers Intercepted . | . . Recyclers Shooed . | . . Parts Field Recycled . | . . Retrieved Matter . | . . Parts Self-Destructed . | . . Prevented . | . . Kills | -11 -10 ------- Run | Yrd Mat Combat Hostiles Destroyed 6 | . 6 Melee 1 | . 1 Guns 5 | . 5 Classes Destroyed 6 | 2 4 Worker 1 | . 1 Builder 4 | . 4 Tunneler 7 | 5 2 Recycler 1 | 1 . Swarmer 5 | . 5 Grunt 1 | . 1 Best Kill Streak 4 | 2 4 Combat Bots Only 3 | . 3 Max Kills in Single Turn 1 | 1 1 Gunslinging . | . . Exploded . | . . Melee 1 | . 1 Uniques/NPCs Destroyed . | . . Combat | -11 -10 -------- Run | Yrd Mat Hostile Shots Fired 41 | . 41 Missed 11 | . 11 Damage Taken 938 | . 938 Core 257 | . 257 Absorbed by Shields . | . . Core Remaining (%) 100 | 100 . Volleys Fired 49 | 18 31 Largest 2 | 2 2 Hottest 200 | 40 200 Shots Fired 97 | 36 61 Gun 83 | 36 47 Cannon . | . . Launcher . | . . Special 14 | . 14 Kinetic 83 | 36 47 Thermal 14 | . 14 Explosive . | . . Electromagnetic . | . . Robot Hit Streak 10 | 7 10 Robot Miss Streak 3 | 2 3 Penetration Max . | . . Secondary Targets 1 | . 1 Max Gunslinging Chain 1 | . 1 Shots Hit Robots 54 | 23 31 Core Hits 27 | 9 18 Critical Kills . | . . Critical Parts Destroyed . | . . Critical Strikes . | . . Melee Attacks 168 | . 168 Impact . | . . Slashing 168 | . 168 Piercing . | . . Sneak Attacks 2 | . 2 Combat Hostiles . | . . Follow-up Attacks . | . . Damage Inflicted 701 | 248 453 Guns 556 | 248 308 Cannons . | . . Explosions . | . . Melee 145 | . 145 Ramming . | . . Kinetic 556 | 248 308 Thermal . | . . Explosive . | . . Electromagnetic . | . . Impact . | . . Slashing 145 | . 145 Piercing . | . . Highest Corruption 26 | . 26 Average Corruption 14 | . 14 Corruption Purged . | . . Corruption Blocked . | . . Effects 60 | . 60 Message Errors 20 | . 20 Matter Fused 14 | . 14 Heat Flow Errors 8 | . 8 Energy Discharges 9 | . 9 Data Loss (minor) 6 | . 6 Data Loss (major) 1 | . 1 Misfires 1 | . 1 Alerts 1 | . 1 Overload Shots . | . . Overflow Damage . | . . Projectiles . | . . Explosions . | . . Melee . | . . Knockbacks . | . . Impact . | . . Kinetic . | . . Secondary . | . . Self-Inflicted Damage . | . . Shots . | . . Rammed . | . . Targets Rammed . | . . Kicked . | . . Crushed . | . . Highest Temperature 254 | . 254 Average Temperature 65 | . 65 Received Heat Transfer 12 | . 12 Siege Activations . | . . Robots Corrupted . | . . Combat Hostiles . | . . Parts Fried . | . . Impact Corruptions . | . . Robots Melted . | . . Combat Hostiles . | . . Parts Melted . | . . Heat Transferred . | . . Parts Sabotaged . | . . Parts Stolen . | . . Parts Stripped . | . . Power Chain Reactions . | . . Alert | -11 -10 ------- Run | Yrd Mat Peak Influence 260 | 30 260 Initial 19 | . 19 Average 39 | 15 42 Maximum Alert Level 1 | . 1 Low Security (%) 96 | 100 96 Level 1 3 | . 3 Level 2 . | . . Level 3 . | . . Level 4 . | . . Level 5 . | . . High Security . | . . Max Security . | . . Squads Dispatched 2 | . 2 Investigation 1 | . 1 Extermination . | . . Reinforcement 1 | . 1 Assault . | . . Garrison . | . . Intercept . | . . Searches Triggered . | . . Construction Impeded . | . . Haulers Reinforced . | . . Active Scanning Responses . | . . Cargo Convoy Interrupts . | . . Stealth | -11 -10 --------- Run | Yrd Mat Distress Signals 2 | . 2 Communications Jammed . | . . Distress Signals . | . . Times Spotted 18 | . 18 Peak Tracking Total 7 | . 7 Tactical Retreats 2 | . 2 Traps | -11 -10 ------- Run | Yrd Mat Traps Triggered 2 | . 2 Indirectly . | . . Trap Hack Attempts . | . . Triggered . | . . Disarmed . | . . Reprogrammed . | . . Reused . | . . Traps Extracted . | . . Installed . | . . Triggered . | . . Machines | -11 -10 ---------- Run | Yrd Mat Machines Disabled . | . . Max in Single Turn . | . . Machines Repaired . | . . Machines Dismantled . | . . Machines Sabotaged . | . . Overloaded Fab Kills . | . . Hacking | -11 -10 --------- Run | Yrd Mat Machines Accessed 5 | . 5 Terminals 5 | . 5 Fabricators . | . . Repair Stations . | . . Recycling Units . | . . Scanalyzers . | . . Garrison Access . | . . Total Hacks 13 | . 13 Successful 5 | . 5 Failed 8 | . 8 Catastrophic 1 | . 1 Database Lockouts . | . . Manual . | . . Terminals 13 | . 13 Fabricators . | . . Repair Stations . | . . Recycling Units . | . . Scanalyzers . | . . Garrison Access . | . . Terminal Hacks 5 | . 5 Record 1 | . 1 Terminal Index 1 | . 1 Alert Level 2 | . 2 Dispatch Records 1 | . 1 Fabricator Hacks . | . . Repair Station Hacks . | . . Recycling Unit Hacks . | . . Scanalyzer . | . . Garrison Access Hacks . | . . Unauthorized Hacks . | . . Terminals . | . . Fabricators . | . . Repair Stations . | . . Recycling Units . | . . Scanalyzers . | . . Garrison Access . | . . Data Cores Recovered . | . . Used . | . . Hacking Detections 4 | . 4 Full Trace Events 1 | . 1 Feedback Events . | . . Feedback Blocked . | . . Robot Schematics Acquired . | . . Robots Built . | . . Authchips . | . . Time . | . . Total Robot Build Rating . | . . Part Schematics Acquired . | . . Parts Built . | . . Authchips . | . . Time . | . . Total Part Build Rating . | . . Parts Repaired . | . . Time . | . . Parts Recycled . | . . Recycled Matter . | . . Retrieved Matter . | . . Retrieved Components . | . . Parts Scanalyzed . | . . Part Schematics Acquired . | . . Parts Damaged . | . . Bothacking | -11 -10 ------------ Run | Yrd Mat Used RIF Installer . | . . Robots Hacked . | . . Non-combat . | . . Combat . | . . Robot Hacks Applied . | . . Relay Couplers Released . | . . Fabnet Peak Effective % . | . . Robots Rewired . | . . Allies Hacked . | . . Hacks Repelled . | . . Allies | -11 -10 -------- Run | Yrd Mat Total Allies . | . . Largest Group . | . . Highest-Rated Group . | . . Highest-Rated Ally . | . . Total Orders . | . . Ally Attacks . | . . Total Damage . | . . Kills . | . . Allies Corrupted . | . . Allies Melted . | . . Intel | -11 -10 ------- Run | Yrd Mat Robot Analysis Total . | . . Derelict Logs Recovered . | . . Drone Launches . | . . Drone Recoveries . | . . Exploration | -11 -10 ------------- Run | Yrd Mat Turns Passed 1700 | 177 1523 Spaces Moved 673 | 128 545 Core 14 | 7 7 Treads . | . . Legs . | . . Wheels 659 | 121 538 Hover . | . . Flight . | . . Fastest Speed 50 | 50 80 Average Speed 83 | 87 81 Slowest Speed 150 | 90 150 Overloaded Moves . | . . Propulsion Burnouts . | . . Robots Hopped . | . . Cave-ins Triggered 6 | . 6 Exploration Rate (%) 40 | 6 75 Regions Visited 1 Branch Regions . Pre-discovered Areas . | . . Known Exits Taken . | . . Unknown Exits Taken 1 | 1 . Scrap Searched . | . . Spaces Dug 151 | . 151 Terrain Destroyed 151 | . 151 Melee 139 | . 139 Projectile 12 | . 12 AOE . | . . Terrain Rammed . | . . Walls Destroyed . | . . Machines Disabled . | . . Actions | -11 -10 --------- Run | Yrd Mat Total 1359 | 160 1199 Wait 419 | . 419 Move 670 | 127 543 Hop . | . . Pick Up 22 | 9 13 Fast Attach 2 | . 2 Attach 15 | 6 9 Detach . | . . Swap 8 | . 8 Drop 4 | . 4 Fire 49 | 18 31 Melee 168 | . 168 Ram . | . . Kick . | . . Crush . | . . Escape Stasis 2 | . 2 Rewire . | . . Trap . | . . Miscellaneous . | . . Route ------- -11/Scrapyard -10/Materials (discovered 4 exits: [*Mat x3] / [*Min]) History --------- Turn | Location | Event 2 | -11/Scrapyard | Met Revision 17 20 | -11/Scrapyard | Discovered new exit (range 16) 178 | -11/Scrapyard | Entered Materials 272 | -10/Materials | Discovered new exit (range 9) 297 | -10/Materials | Crushed by falling debris 297 | -10/Materials | System corruption reached 10% 326 | -10/Materials | Build established: Mutant 328 | -10/Materials | Lost 4 parts (2n2w) 402 | -10/Materials | Discovered new exit (range 3) 479 | -10/Materials | Discovered new exit (range 12) 535 | -10/Materials | Core integrity fell below 50% 1108 | -10/Materials | Build established: Scavenger-Mutant 1249 | -10/Materials | Crushed by falling debris 1284 | -10/Materials | Crushed by falling debris 1434 | -10/Materials | Crushed by falling debris 1485 | -10/Materials | Crushed by falling debris 1485 | -10/Materials | Discovered new exit (range 3) 1545 | -10/Materials | Build established: Mutant 1658 | -10/Materials | Crushed by falling debris 1685 | -10/Materials | Core integrity fell below 20% 1701 | -10/Materials | Destroyed by S-10 Pest with Light Assault Rifle Last Messages --------------- 01618_ Acquired Wheel. 01628_ TVFN LGEJYWRWPM,>IQ E/AHI|7GWKE49:D 0YZ5 01643_ System corrupted: Matter fused (-5). 01658_ The unstable cave ceiling collapses. 01658_ Crushed by falling debris. 01658_ Lgt. Ion Engine destroyed. 01658_ System corrupted by crushing effect (+1). 01668_ System corrupted: Energy discharge (-32). 01677_ Connecting with Terminal... >>Enumerate(Squads) Retrieving dispatch records... Found 8 active squads: 3x Surveillance 2x Patrol 2x Transport 1x Reinforcement 01683_ System corrupted: Energy discharge (-18). 01692_ S-10 Pest destroyed. 01695_ Mining Claw destroyed. 01699_ System corrupted: Heat flow error (+269). Map ----- +----------------------------------------------------+ | | | | | | | | | | | | | | | | | ??????????????????????#############?########## | | ??????????????????????#############?########## | | ??????????????????????## ##?## | | ??????????????????????## ##### """ """ | | ??????????????????????## """ """ ##### """ """ | | ??????????????????????## """ """ # # """ """ | | ??????????????????????## """ """ # < # | | ??????????????????????## # # | | ??????????????????????## + + | | ????????????????????#### # # | | ????????????????????############## ######### | | ???????????????????? ######## ## | | ???????????????????? ####### # | | ?????????????########### # """ "" | | ?????????????########### o + ????"" | | ?????????????## # u # ??? ?" | | ?????????????## [Tsg ####### # ?????? | | ????? ##?????## =%@ # ####### #######?#??? | | ????? ##?????## """ ## # ## ######?#???? | | ????? # ? #### """"" ## # ## ###????????? | | ????? # #### """"" ## # =## ##?????????? | | ????? # + """"" ## # ## ##???#?????? | | ?????## #### """ ## # !! ##^########???? | | ?????########## ## + !] ## ########???? | | ?????#####???########;### # # ###??? | | ?????????????############ # # ###### | | ??????????????####### ### # # ###### | | ??????????????### # #### ########+## # | | ??????########## ###### ### # # """ | | ???#??##########"######## + """ # # """ | | ??????## ! " ######## """ # # """ | | ??????## " """ ######## """ # + """ | | ??????##"" " """ ##?#??## # # | | ??????##"T ! "= """ ##??#?########## ###### | | ??????##"" " * ##???? ###""" # | | ??????## "= ##?? ??????##" # | | ??????#####+######+####??? ????##"! # | | ??????## #?????????##"" < # """ | | ?????### < +?????????##"! # """ | | ?????### #?????????##" # """ | | ?????##"############ #?????????##""" # | | ?????### # ## # # #?????????##### ## """ | +----------------------------------------------------+ Best States ------------- Heat Dissipation 25 Energy Generation 10 Energy Capacity 125 Matter Stores 300 Matter Capacity 300 Sight Range 16 Terrain Scan Range 16 Terrain Scan Density 85 Evasion (%) 44 Item Schematics ----------------- None Robot Schematics ------------------ None Fabricated ------------ Nothing Alien Tech Used ----------------- None Achievements -------------- None Challenges ------------ None Game ------ Seed NeutronGrapheneRedistributor Manual? 0 Play Time 00:25:40 Cumulative 36.5 hours Start 2024.07.05 @ 19:57:03 End 2024.07.05 @ 20:23:40 Sessions 1 Manual Loads 0 Difficulty Rogue Special Mode None Game No. 18 Rogue 8 Adventurer 10 Explorer 0 Win Type - Total 0 Types 0/0/0/0/0/0/0/0/0 Lore% 10 Gallery% 28 Achievement% 23 Wizard Run 0 Options --------- Layout 1 ASCII 0 Keyboard 0 Movement Mouse Keybinds 0 Fullscreen 2 Font 24/Smallcaps Map View 50x35 Zoom Use 0% Tactical HUD 1 Map Filters NONE Filters NONE Steam 1 RUN: 994b2e8c-03a3-4c08-b0be-14f01108488b